Cogmind - Beta 15 @@@ ROGUE MODE // 2025.05.28 @ 01:22:05 Player: Rohain Result: Destroyed by Y-45 Defender with Beam Rifle Performance ------------- Evolutions (0) 0 Regions Visited (3) 600 Robots Destroyed (23) 115 Value Destroyed (399) 399 Prototype IDs (0) 0 Alien Tech Used (0) 0 Bonus (0) 0 TOTAL SCORE: 1114 Bonus ------- None Cogmind --------- Core Integrity 0/250 Matter 298/300 Energy 250/250 System Corruption 0% Temperature Cool (9) Movement Walking (120) Location -10/Subcaves Parts ------- > --- POWER (1) -------- Ion Engine > --- PROPULSION (2) --- Aluminum Leg Aluminum Leg > --- UTILITY (2) ------ Medium Storage Unit Visual Processing Unit > --- WEAPON (2) ------- Subdweller Machine Gun > --- INVENTORY (10) --- Light Ion Engine Light Ion Engine Light Treads Scrap Suit Improved Heat Sink EM Pulse Gun Medium Laser Assault Rifle Grenade Launcher Peak State ------------ > --- POWER ------------ Ion Engine > --- PROPULSION ------- Aluminum Leg Aluminum Leg > --- UTILITY ---------- Medium Storage Unit Visual Processing Unit > --- WEAPON ----------- Assault Rifle Subdweller Machine Gun > --- INVENTORY -------- Light Ion Engine Light Ion Engine Light Treads Scrap Suit Improved Heat Sink EM Pulse Gun Medium Laser Assault Rifle Grenade Launcher [Rating: 10] Favorites ----------- Power Ion Engine Engine Ion Engine Propulsion Aluminum Leg Leg Aluminum Leg Utility Medium Storage Unit Storage Medium Storage Unit Processor Visual Processing Unit Weapon Assault Rifle Energy Gun EM Pulse Gun Ballistic Gun Assault Rifle Build | -11 -10 -10 -10 ------- Run | Yrd Mat Min Sub Slots Evolved . | . . . . Power . | . . . . Propulsion . | . . . . Utility . | . . . . Weapon . | . . . . Parts Attached 18 | 7 5 5 1 Power 4 | 1 1 2 . Engine 4 | 1 1 2 . Core . | . . . . Reactor . | . . . . Propulsion 4 | 2 . 2 . Treads . | . . . . Leg 4 | 2 . 2 . Wheel . | . . . . Hover . | . . . . Flight . | . . . . Utility 3 | 1 2 . . Device . | . . . . Storage 2 | 1 1 . . Processor 1 | . 1 . . Hackware . | . . . . Protection . | . . . . Artifact . | . . . . Weapon 7 | 3 2 1 1 Energy Gun 1 | 1 . . . Energy Cannon . | . . . . Ballistic Gun 6 | 2 2 1 1 Ballistic Cannon . | . . . . Launcher . | . . . . Special Weapon . | . . . . Impact Weapon . | . . . . Slashing Weapon . | . . . . Piercing Weapon . | . . . . Special Melee Weapon . | . . . . Unidentified Prototypes . | . . . . Parts Lost 5 | . . 5 . Power 1 | . . 1 . Propulsion 2 | . . 2 . Utility . | . . . . Weapon 2 | . . 2 . Highest Loss Streak 5 | . . 5 . To Critical Strikes . | . . . . Average Backups 6 | 1 5 6 8 Power 1 | . 1 1 2 Propulsion . | . 1 1 1 Utility . | . . . 2 Weapon 3 | . 2 3 3 Tool/Special . | . . . . Unused Backups 7 | . 1 . 6 Power 1 | . . . 1 Propulsion 1 | . . . 1 Utility 2 | . . . 2 Weapon 3 | . 1 . 2 Tool/Special . | . . . . Average Slot Usage (%) 93 | . 90 96 91 Engine 13 | . 14 13 14 Leg 26 | . 28 25 28 Storage 14 | . 14 14 14 Processor 11 | . 4 14 14 Ballistic Gun 26 | . 28 27 20 Peak Build Rating 10 | 6 8 9 10 Average Rating 7 | 4 6 8 9 On Entrance 5 | . 6 8 9 Naked Turns . | . . . . Heaviest Build 19 | 14 19 19 19 Greatest Support 20 | 20 20 20 20 Greatest Overweight (x) 5 | . . 5 . Average Overweight (x) . | . . . . Largest Inventory Capacity 10 | 8 10 10 10 Average Capacity 9 | 7 9 10 10 Most Carried 10 | 4 7 9 10 Average Carried 6 | 2 5 7 9 Final Capacity 10 | 8 10 10 10 Final Carried 10 | 3 7 9 10 Class Distribution -------------------- 61% | Mutant 38% | Scavenger-Mutant Dominant Class ---------------- Mutant | -10/Materials Mutant | -10/Mines Scavenger-Mutant | -10/Subcaves Resources | -11 -10 -10 -10 ----------- Run | Yrd Mat Min Sub Matter Collected 725 | 231 177 263 54 Remotely . | . . . . Salvage Created 557 | . 115 323 119 Parts 52 | . 20 24 8 Haulers Intercepted . | . . . . Recyclers Shooed . | . . . . Parts Field Recycled . | . . . . Retrieved Matter . | . . . . Parts Self-Destructed . | . . . . Prevented . | . . . . Kills | -11 -10 -10 -10 ------- Run | Yrd Mat Min Sub Combat Hostiles Destroyed 20 | . 6 11 3 Guns 20 | . 6 11 3 Classes Destroyed 5 | . 2 2 1 Recycler 1 | . . 1 . Watcher 2 | . 2 . . Swarmer 15 | . 6 9 . Grunt 2 | . . 2 . Subdweller 3 | . . . 3 Best Kill Streak 4 | . 4 3 2 Combat Bots Only 3 | . 3 3 2 Max Kills in Single Turn 1 | . 1 1 1 Gunslinging . | . . . . Exploded . | . . . . Melee . | . . . . Uniques/NPCs Destroyed . | . . . . Combat | -11 -10 -10 -10 -------- Run | Yrd Mat Min Sub Hostile Shots Fired 142 | . 37 86 19 Missed 42 | . 9 25 8 Hits 100 | . 28 61 11 Projectile 100 | . 28 61 11 Critical Strikes 2 | . . 1 1 Damage Taken 1024 | . 229 579 216 Core 251 | . 16 139 96 Absorbed by Shields . | . . . . Core Remaining (%) 100 | 100 . . . Volleys Fired 65 | . 18 36 11 Largest 2 | . 2 2 2 Hottest 40 | . 40 40 40 Shots Fired 125 | . 36 72 17 Gun 125 | . 36 72 17 Cannon . | . . . . Launcher . | . . . . Special . | . . . . Kinetic 125 | . 36 72 17 Thermal . | . . . . Explosive . | . . . . Electromagnetic . | . . . . Robot Hit Streak 17 | . 3 9 17 Robot Miss Streak 7 | . 7 5 1 Penetration Max . | . . . . Secondary Targets 7 | . 2 4 1 Max Gunslinging Chain 1 | . 1 1 1 Shots Hit Robots 71 | . 13 44 14 Core Hits 31 | . 9 16 6 Critical Kills . | . . . . Critical Parts Destroyed . | . . . . Critical Strikes . | . . . . Melee Attacks . | . . . . Impact . | . . . . Slashing . | . . . . Piercing . | . . . . Sneak Attacks . | . . . . Combat Hostiles . | . . . . Follow-up Attacks . | . . . . Damage Inflicted 941 | . 175 563 203 Guns 941 | . 175 563 203 Cannons . | . . . . Explosions . | . . . . Melee . | . . . . Ramming . | . . . . Kinetic 941 | . 175 563 203 Thermal . | . . . . Explosive . | . . . . Electromagnetic . | . . . . Impact . | . . . . Slashing . | . . . . Piercing . | . . . . Highest Corruption . | . . . . Average Corruption . | . . . . Corruption Purged . | . . . . Corruption Blocked . | . . . . Overload Shots . | . . . . Overflow Damage . | . . . . Projectiles . | . . . . Explosions . | . . . . Melee . | . . . . Knockbacks . | . . . . Impact . | . . . . Kinetic . | . . . . Secondary . | . . . . Self-Inflicted Damage . | . . . . Shots . | . . . . Rammed . | . . . . Targets Rammed . | . . . . Kicked . | . . . . Crushed . | . . . . Highest Temperature 21 | . . 21 . Average Temperature 6 | . . 6 . Received Heat Transfer 180 | . . 147 33 Siege Activations . | . . . . Martial Activations . | . . . . Shielding Activations . | . . . . Robots Disrupted . | . . . . Combat Hostiles . | . . . . Robots Corrupted . | . . . . Combat Hostiles . | . . . . Parts Fried . | . . . . Impact Corruptions . | . . . . Robots Melted . | . . . . Combat Hostiles . | . . . . Parts Melted . | . . . . Heat Transferred . | . . . . Parts Sabotaged . | . . . . Parts Stolen . | . . . . Parts Stripped . | . . . . Power Chain Reactions . | . . . . Alert | -11 -10 -10 -10 ------- Run | Yrd Mat Min Sub Maximum Alert Level . | . . . . Low Security (%) 100 | 100 100 100 . Level 1 . | . . . . Level 2 . | . . . . Level 3 . | . . . . Level 4 . | . . . . Level 5 . | . . . . High Security . | . . . . Max Security . | . . . . Peak Influence 136 | . 124 136 . Initial 26 | . . 26 . Average 64 | . 56 74 . Influence Increases 538 | . 213 325 . Destroy 0b10 Robot/C 340 | . 120 220 . Destroy 0b10 Robot/NC 15 | . 10 5 . Destroy Leader 74 | . 34 40 . Successful Hack 18 | . 18 . . Disable Machine 15 | . . 15 . Destroy Structure 1 | . 1 . . Lose Combat Pursuer 75 | . 30 45 . Influence Decreases 538 | . 145 378 15 Entered New Map 50 | . . 42 8 Time Decay 438 | . 145 286 7 Lost Part 50 | . . 50 . Squads Dispatched . | . . . . Investigation . | . . . . Extermination . | . . . . Reinforcement . | . . . . Assault . | . . . . Garrison . | . . . . Intercept . | . . . . Searches Triggered . | . . . . Construction Impeded . | . . . . Haulers Reinforced . | . . . . Active Scanning Responses . | . . . . Cargo Convoy Interrupts . | . . . . Stealth | -11 -10 -10 -10 --------- Run | Yrd Mat Min Sub Distress Signals 1 | . 1 . . Communications Jammed . | . . . . Distress Signals . | . . . . Times Spotted 29 | . 11 14 4 Peak Tracking Total 5 | . 5 4 2 Tactical Retreats 4 | . 2 2 . Traps | -11 -10 -10 -10 ------- Run | Yrd Mat Min Sub Traps Triggered . | . . . . Indirectly . | . . . . Trap Hack Attempts . | . . . . Triggered . | . . . . Disarmed . | . . . . Reprogrammed . | . . . . Reused . | . . . . Traps Extracted . | . . . . Installed . | . . . . Triggered . | . . . . Machines | -11 -10 -10 -10 ---------- Run | Yrd Mat Min Sub Machines Disabled 1 | . . 1 . Max in Single Turn 1 | . . 1 . Machines Repaired . | . . . . Machines Dismantled . | . . . . Machines Sabotaged . | . . . . Overloaded Fab Kills . | . . . . Hacking | -11 -10 -10 -10 --------- Run | Yrd Mat Min Sub Machines Accessed 4 | . 4 . . Terminals 4 | . 4 . . Fabricators . | . . . . Repair Stations . | . . . . Recycling Units . | . . . . Scanalyzers . | . . . . Garrison Access . | . . . . Total Hacks 12 | . 12 . . Successful 6 | . 6 . . Failed 6 | . 6 . . Catastrophic . | . . . . Database Lockouts . | . . . . Manual 13 | . 13 . . Terminals 12 | . 12 . . Fabricators . | . . . . Repair Stations . | . . . . Recycling Units . | . . . . Scanalyzers . | . . . . Garrison Access . | . . . . Terminal Hacks 2 | . 2 . . Robot Analysis 2 | . 2 . . Fabricator Hacks . | . . . . Repair Station Hacks . | . . . . Recycling Unit Hacks . | . . . . Scanalyzer . | . . . . Garrison Access Hacks . | . . . . Unauthorized Hacks 4 | . 4 . . Terminals 4 | . 4 . . Botnet 4 | . 4 . . Fabricators . | . . . . Repair Stations . | . . . . Recycling Units . | . . . . Scanalyzers . | . . . . Garrison Access . | . . . . Data Cores Recovered . | . . . . Used . | . . . . Hacking Detections 3 | . 3 . . Full Trace Events . | . . . . Feedback Events . | . . . . Feedback Blocked . | . . . . Robot Schematics Acquired . | . . . . Robots Built . | . . . . Authchips . | . . . . Time . | . . . . Total Robot Build Rating . | . . . . Part Schematics Acquired . | . . . . Parts Built . | . . . . Authchips . | . . . . Time . | . . . . Total Part Build Rating . | . . . . Parts Repaired . | . . . . Time . | . . . . Parts Recycled . | . . . . Recycled Matter . | . . . . Retrieved Matter . | . . . . Retrieved Components . | . . . . Parts Scanalyzed . | . . . . Part Schematics Acquired . | . . . . Parts Damaged . | . . . . Bothacking | -11 -10 -10 -10 ------------ Run | Yrd Mat Min Sub Used RIF Installer . | . . . . Robots Hacked . | . . . . Non-combat . | . . . . Combat . | . . . . Robot Hacks Applied . | . . . . Relay Couplers Released . | . . . . Fabnet Peak Effective % . | . . . . Robots Rewired . | . . . . Allies Hacked . | . . . . Hacks Repelled . | . . . . Allies | -11 -10 -10 -10 -------- Run | Yrd Mat Min Sub Total Allies . | . . . . Largest Group . | . . . . Highest-Rated Group . | . . . . Highest-Rated Ally . | . . . . Total Orders . | . . . . Ally Attacks . | . . . . Total Damage . | . . . . Kills . | . . . . Allies Corrupted . | . . . . Allies Melted . | . . . . Intel | -11 -10 -10 -10 ------- Run | Yrd Mat Min Sub Active Infowar (turns) 985 | . 116 630 239 Optics 985 | . 116 630 239 Robot Analysis Total 2 | . 2 . . Derelict Logs Recovered 2 | . . 1 1 Drone Launches . | . . . . Drone Recoveries . | . . . . Exploration | -11 -10 -10 -10 ------------- Run | Yrd Mat Min Sub Turns Passed 1257 | 63 325 630 239 Spaces Moved 836 | 42 211 409 174 Core 9 | 4 . 5 . Treads . | . . . . Legs 827 | 38 211 404 174 Wheels . | . . . . Hover . | . . . . Flight . | . . . . Fastest Speed 50 | 50 120 120 120 Average Speed 121 | 113 120 124 120 Slowest Speed 300 | 120 120 300 120 Overloaded Moves . | . . . . Propulsion Burnouts . | . . . . Robots Hopped . | . . . . Potential Cave-ins . | . . . . Cave-ins Triggered . | . . . . Exploration Rate (%) 34 | 3 47 75 14 Regions Visited 3 Branch Regions 2 Pre-discovered Areas . | . . . . Known Exits Taken . | . . . . Unknown Exits Taken 3 | 1 1 1 . Scrap Searched 2 | . . 2 . Spaces Dug . | . . . . Terrain Destroyed . | . . . . Melee . | . . . . Projectile . | . . . . AOE . | . . . . Terrain Rammed . | . . . . Walls Destroyed . | . . . . Machines Disabled . | . . . . Actions | -11 -10 -10 -10 --------- Run | Yrd Mat Min Sub Total 949 | 56 248 458 187 Wait 12 | . 7 5 . Move 833 | 41 210 408 174 Hop . | . . . . Pick Up 12 | 5 4 3 . Fast Attach 8 | 4 2 2 . Attach 7 | 4 . 3 . Detach 2 | 2 . . . Swap 5 | . 3 1 1 Drop 5 | . 4 . 1 Fire 65 | . 18 36 11 Melee . | . . . . Ram . | . . . . Kick . | . . . . Crush . | . . . . Escape Stasis . | . . . . Rewire . | . . . . Trap . | . . . . Miscellaneous . | . . . . Route ------- -11/Scrapyard -10/Materials (discovered 2 exits: [*Mat] / [*Min]) -10/Mines (discovered 3 exits: [*Mat x2] / [*Sub]) -10/Subcaves History --------- Turn | Location | Event 20 | -11/Scrapyard | Discovered new exit (range 16) 64 | -11/Scrapyard | Entered Materials 226 | -10/Materials | Discovered new exit (range 3) 304 | -10/Materials | Build established: Mutant 372 | -10/Materials | Discovered new exit (range 14) 389 | -10/Materials | Entered Mines 551 | -10/Mines | Learned Materials emergency access door positions 558 | -10/Mines | Discovered new exit (range 8) 701 | -10/Mines | Core integrity fell below 50% 730 | -10/Mines | Lost 5 parts (1p2n2w) 817 | -10/Mines | Found a Scrap Suit stashed away for nefarious purposes 819 | -10/Mines | Found Scrap Suit 882 | -10/Mines | YI-UF0 nonchalantly dropped a Grenade Launcher on the ground 977 | -10/Mines | Discovered new exit (range 10) 1012 | -10/Mines | Discovered new exit (range 6) 1019 | -10/Mines | Entered Subcaves 1020 | -10/Subcaves | Approached by a straggling Scientist 1027 | -10/Subcaves | Learned location of 1 exit from Materials 1073 | -10/Subcaves | Build established: Scavenger-Mutant 1107 | -10/Subcaves | Core integrity fell below 20% 1258 | -10/Subcaves | Destroyed by Y-45 Defender with Beam Rifle Last Messages --------------- back to the UFD." 01027_ Acquired derelict log, extracted data. Data stored: Materials exits (x1). 10-G8Q(c): "I think it's somewhere east of here" 01108_ T1-G3T(R) destroyed. 01108_ Switching to secondary target: VG-5EF(R). 01112_ Subatomizers dissect the Disposable Heat Sink. 01112_ VG-5EF(R) affixes Scrap Shield Fragment to Scrap Shield. 01115_ VG-5EF(R) destroyed. 01120_ Acquired 36 matter. 10-G8Q(c): "I think it's somewhere east of here" 01126_ Subatomizers dissect the Disposable Heat Sink. 01127_ Dropped Assault Rifle. 10-G8Q(c): "I think it's somewhere northeast of here" 01194_ DI-UHE(R) destroyed. 01203_ Acquired 18 matter. Map ----- +----------------------------------------------------+ | #????????????????????????????????????????????????? | | ?????????????????????????????????????????????????? | | ?????????????????????????????????????????????????? | | ?????????????????????????????????????????????????? | | ?????????????????????????????????????????????????? | | ?????????????????????????????????????????????????? | | ?????????????????????????????????????????????????? | | ?????????????????????????????????????????????????? | | ?????????????????????????????????????????????????? | | ?????????????????????????????????????????????????? | | ?????????????????????????????????????????????????? | | ?????????????????????????????????????????????????? | | ?????????????????????????????????????????????????? | | ?????????????????????????????????????????????????? | | ????###??????????????????????????????????????????? | | ##### ####???????????????????????????????????????? | | #"""" ##?????????#####????????????????????????? | | """" "" #?????????# #????????????????????????? | | """" # #???####### ##???????????????????????? | | ### #??## ## ##??????????????????????? | | " ### ##### #??????????????????????? | | #"""## ## #??????????????????????? | | ##"#### ## # #####??????????????????? | | ?###?# # ## %#??????????????????? | | ???### ## # # #??????????????????? | | #??# #### @ #??????????????????? | | ### ### ##### Y % #??#??????????????? | | #??### ### ### #??????????????? | | #?#### ## #??? #??????????????? | | ## ### ##% ##??????????????? | | #### ??? #???????????????? | | ### # ???? #???????????????? | | ## * #### ???#???????????????? | | ## % #??#???????????????????? | | * ## = #?????????????????????? | | % #### % #????????????????? | | *% #??# ##????????????????? | | #?# ### #######?????????????????? | | #?# ##???????????????????????? | | ## #?# ##????????????????????????? | | ??##### ###?????????????????????????? | | ??????## ####???????????????????????????? | | ???????# #??????????????????????????????? | | ???????## #### #??????????????????????????????? | | ????????###??######??????????????????????????????? | | ?????????????????????????????????????????????????? | | ?????????????????????????????????????????????????? | | ?????????????????????????????????????????????????? | | ?????????????????????????????????????????????????? | | ?????????????????????????????????????????????????? | +----------------------------------------------------+ Best States ------------- Heat Dissipation 25 Energy Generation 10 Energy Capacity 250 Matter Stores 300 Matter Capacity 300 Sight Range 18 Terrain Scan Density 10 Evasion (%) 55 Item Schematics ----------------- None Robot Schematics ------------------ None Fabricated ------------ Nothing Repaired ---------- Nothing Alien Tech Used ----------------- None Achievements -------------- None Challenges ------------ None Game ------ Seed BlastEncryptedInterrupter Manual? 0 Play Time 00:08:15 Cumulative 70.8 hours Start 2025.05.28 @ 01:15:10 End 2025.05.28 @ 01:22:05 Sessions 1 Manual Loads 0 Difficulty Rogue Special Mode None Game No. 121 Rogue 105 Adventurer 16 Explorer 0 Win Type - Total 1 Types 1/0/0/0/0/0/0/0/0/0 Lore% 25 Gallery% 47 Achievement% 48 Wizard Run 0 Options --------- Layout 2 ASCII 0 Keyboard 0 Movement Mouse Keybinds 0 Fullscreen 1 Font 24/Smallcaps Map View 50x44 Zoom Use 0% Tactical HUD 1 Map Filters NONE Filters NONE Steam 1 RUN: 77c06819-f501-4a6b-8810-b7fd19f0e567